[Event "Titled Tuesday Blitz June 6 Late 2023"]
[White "Sanchez, Robert"]
[Black "Celestino, Rafael Teixeira"]
[WhiteFideId "2034360"]
[BlackFideId "2108925"]
[WhiteElo "1890"]
[BlackElo "2300"]
[Result "1-0"]
[Round "11"]
[TimeControl "180+2"]
[Date "2023.06.07"]
[WhiteClock "0:00:46"]
[BlackClock "0:01:50"]
[Board "94"]

1. e4 {[%clk 0:03:00]}  e5 {[%clk 0:02:59]} 2. Nf3 {[%clk 0:03:01]}  Nc6 {[%clk 0:03:00]} 3. Bb5 {[%clk 0:03:01]}  a6 {[%clk 0:03:00]} 4. Ba4 {[%clk 0:03:01]}  b5 {[%clk 0:03:00]} 5. Bb3 {[%clk 0:03:01]}  Nf6 {[%clk 0:03:01]} 6. O-O {[%clk 0:03:01]}  Bc5 {[%clk 0:03:02]} 7. c3 {[%clk 0:03:00]}  O-O {[%clk 0:03:01]} 8. d4 {[%clk 0:03:00]}  exd4 {[%clk 0:03:02]} 9. cxd4 {[%clk 0:03:00]}  Bb6 {[%clk 0:03:00]} 10. e5 {[%clk 0:02:55]}  Ne4 {[%clk 0:02:59]} 11. Bd5 {[%clk 0:02:49]}  Nxf2 {[%clk 0:02:25]} 12. Rxf2 {[%clk 0:02:47]}  Bb7 {[%clk 0:02:25]} 13. Be4 {[%clk 0:02:36]}  d5 {[%clk 0:02:24]} 14. Bxh7+ {[%clk 0:02:31]}  Kh8 {[%clk 0:02:16]} 15. Be3 {[%clk 0:02:27]}  f6 {[%clk 0:02:13]} 16. Bg6 {[%clk 0:02:24]}  fxe5 {[%clk 0:02:10]} 17. Ng5 {[%clk 0:02:16]}  Kg8 {[%clk 0:01:56]} 18. Bh7+ {[%clk 0:02:03]}  Kh8 {[%clk 0:01:54]} 19. Qh5 {[%clk 0:02:02]}  Qxg5 {[%clk 0:01:54]} 20. Bxg5 {[%clk 0:01:55]}  Rxf2 {[%clk 0:01:51]} 21. Bg6+ {[%clk 0:01:45]}  Kg8 {[%clk 0:01:49]} 22. Qh7+ {[%clk 0:01:44]}  Kf8 {[%clk 0:01:50]} 23. Qh8# {[%clk 0:00:46]} 1-0


[Site "https://www.chess.com"]